fUSD/lending_fUSD_20251025
["ID","MTS","AMOUNT","RATE_DAILY","PERIOD"]
[392384687,1761415958214,-249.18237144,0.00017533,2]
[392384856,1761416734878,-195.21481558,0.000175,2]
[392384872,1761416815271,173.01380808,0.00024,3]
[392384964,1761416876903,15505.395514,0.00015,2]
[392384965,1761416876930,9422.2243567,0.00015,2]
[392384966,1761416876955,329735.55952625,0.00015,2]
[392384986,1761416891832,2167.0,0.000239,5]
[392385093,1761416959213,-9.32490442,0.000175,2]
[392385094,1761416959244,-23.06224455,0.00017533,2]
[392385095,1761416959272,-1003.03257103,0.00018,2]
[392385096,1761416959297,-109.25998745,0.0001833,2]
[392385104,1761416977476,-721.62001255,0.0001833,2]
[392385127,1761417032211,-830.88,0.00019127,2]
[392385128,1761417032221,-150.0,0.00019127,2]
[392385129,1761417032230,-1556.29592943,0.0001925,2]
[392385130,1761417032241,-441.08437575,0.0001925,2]
[392385131,1761417032252,-1256.95969482,0.0001925,2]
[392385132,1761417032261,-830.88,0.00019923,2]
[392385133,1761417032270,-320.2402986,0.0002072,2]
[392385134,1761417032284,-400.0,0.0002072,2]
[392385135,1761417032321,-110.6397014,0.0002072,2]
[392385136,1761417032331,-500.0,0.00021516,2]
[392385137,1761417032339,-500.0,0.00021516,2]
[392385138,1761417032348,-500.0,0.00021516,2]
[392385139,1761417032358,-500.0,0.00021516,2]
[392385140,1761417032368,-500.0,0.00021516,2]
[392385141,1761417032377,-500.0,0.00021516,2]
[392385142,1761417032386,-645.12439793,0.00021516,2]
[392385143,1761417032395,-830.88,0.00021517,2]
[392385144,1761417032404,-830.88,0.00022314,2]
[392385145,1761417032413,-1200.0,0.0002311,2]
[392385146,1761417032422,-830.88,0.00023111,2]
[392385147,1761417032431,-150.35,0.00023182,2]
[392385148,1761417032440,-830.88,0.00023908,2]
[392385149,1761417032449,-300.0,0.00024704,2]
[392385150,1761417032458,-830.88,0.00024705,2]
[392385151,1761417032467,-445.0,0.00025102,2]
[392385152,1761417032477,-1680.0,0.00025201,2]
[392385153,1761417032486,-830.88,0.00025502,2]
[392385154,1761417032495,-830.88,0.00026299,2]
[392385155,1761417032506,-178.92338346,0.000263,2]
[392385156,1761417032515,-179.03,0.00026553,2]
[392385157,1761417032524,-830.88,0.00027096,2]
[392385158,1761417032533,-166.66,0.00027476,30]
[392385159,1761417032542,-2351.0,0.0002748,2]
[392385160,1761417032551,-654.00774338,0.00027893,2]
[392385161,1761417032563,-176.87225662,0.00027893,2]
[392385162,1761417032572,-166.66,0.00028055,30]
[392385163,1761417032581,-166.66,0.00028633,30]
[392385164,1761417032590,-830.88,0.0002869,2]
[392385165,1761417032599,-108.92774338,0.00028797,2]
[392385166,1761417032614,-102.02225662,0.00028797,2]
[392385167,1761417032624,-1000.0,0.000288,2]
[392385168,1761417032634,-1485.32,0.00028808,2]
[392385169,1761417032643,-150.0,0.0002881,2]
[392385171,1761417032652,-180.0,0.00028931,7]
[392385172,1761417032661,-265.01,0.00028941,4]
[392385173,1761417032670,-1000.0,0.00029091,2]
[392385174,1761417032679,-426.73,0.00029107,2]
[392385175,1761417032688,-15070.73,0.00029142,2]
[392385176,1761417032697,-166.66,0.00029212,30]
[392385177,1761417032707,-1000.0,0.0002932,2]
[392385178,1761417032716,-999.0,0.00029355,3]
[392385179,1761417032725,-1290.67,0.00029358,2]
[392385181,1761417032735,-7213.83382622,0.00029481,2]
[392385183,1761417032746,-250.0,0.00029481,2]
[392385197,1761417038189,-401.84617378,0.00029481,2]
[392385198,1761417038198,-830.88,0.00029487,2]
[392385199,1761417038208,-250.0,0.00029514,2]
[392385200,1761417038218,-180.0,0.00029748,2]
[392385201,1761417038227,-166.66,0.0002979,30]
[392385202,1761417038236,-180.0,0.000299,2]
[392385203,1761417038246,-502.0,0.00029966,2]
[392385204,1761417038266,-743.1114165,0.0003,3]
[392385205,1761417038279,-1812.45397105,0.0003,3]
[392385207,1761417038403,-3130.53390375,0.0003,3]
[392385208,1761417038413,-154.69191,0.0003027,2]
[392385210,1761417038422,-830.88,0.00030284,2]
[392385212,1761417038431,-344.0,0.00030332,2]
[392385214,1761417038441,-777.64869677,0.00030357,2]
[392385216,1761417038450,-150.0,0.00030368,30]
[392385217,1761417038460,-150.0,0.00030368,30]
[392385218,1761417038470,-150.0,0.00030368,30]
[392385220,1761417038479,-150.0,0.00030368,60]
[392385222,1761417038489,-201.68175415,0.00030368,30]
[392385224,1761417038498,-202.16029931,0.00030368,30]
[392385226,1761417038507,-500.0,0.00030368,2]
[392385228,1761417038517,-500.0,0.00030368,30]
[392385230,1761417038526,-150.0,0.00030368,30]
[392385232,1761417038535,-150.0,0.00030368,30]
[392385234,1761417038549,-150.0,0.00030368,30]
[392385236,1761417038558,-150.0,0.00030368,30]
[392385238,1761417038568,-500.0,0.00030368,30]
[392385240,1761417038577,-266.47534586,0.00030368,30]
[392385242,1761417038587,-150.0,0.00030368,30]
[392385244,1761417038596,-500.0,0.00030368,2]
[392385246,1761417038606,-150.0,0.00030368,30]
[392385248,1761417038616,-500.0,0.00030368,30]
[392385250,1761417038626,-204.74236721,0.00030368,30]
[392385252,1761417038636,-150.0,0.00030368,30]
[392385254,1761417038646,-192.5778253,0.00030368,30]
[392385256,1761417038655,-150.0,0.00030368,2]
[392385258,1761417038665,-150.0,0.00030368,2]
[392385260,1761417038675,-150.0,0.00030368,30]
[392385262,1761417038685,-209.56043698,0.00030368,30]
[392385264,1761417038695,-200.0,0.00030368,30]
[392385266,1761417038704,-500.0,0.00030368,30]
[392385268,1761417038714,-500.0,0.00030368,30]
[392385271,1761417038724,-166.66,0.00030369,30]
[392385273,1761417038734,-10418.27218705,0.00030372,2]
[392385437,1761417040265,-7292.57383005,0.00030372,2]
[392385440,1761417040276,-150.0,0.00030423,30]
[392385442,1761417040286,-150.0,0.00030423,30]
[392385444,1761417040295,-150.0,0.00030423,30]
[392385446,1761417040304,-150.0,0.00030423,60]
[392385448,1761417040314,-500.0,0.00030423,2]
[392385450,1761417040323,-500.0,0.00030423,30]
[392385452,1761417040333,-200.0,0.00030423,30]
[392385454,1761417040343,-150.0,0.00030423,30]
[392385456,1761417040352,-150.0,0.00030423,30]
[392385458,1761417040361,-150.0,0.00030423,30]
[392385460,1761417040371,-500.0,0.00030423,30]
[392385462,1761417040382,-200.0,0.00030423,30]
[392385464,1761417040391,-500.0,0.00030423,2]
[392385467,1761417040402,-150.0,0.00030423,30]
[392385469,1761417040415,-500.0,0.00030423,30]
[392385471,1761417040425,-210.50418982,0.00030423,30]
[392385473,1761417040434,-153.77949303,0.00030423,2]
[392385475,1761417040443,-150.0,0.00030423,30]
[392385477,1761417040452,-500.0,0.00030423,30]
[392385479,1761417040462,-500.0,0.00030423,30]
[392385481,1761417040472,-1574.2215732,0.00030461,2]
[392385483,1761417040482,-4480.8418812,0.00030461,2]
[392385486,1761417040491,-150.0,0.00030478,30]
[392385488,1761417040501,-201.25700237,0.00030478,30]
[392385490,1761417040511,-200.0,0.00030478,30]
[392385492,1761417040520,-164.97884209,0.00030478,60]
[392385514,1761417040705,-500.0,0.00030478,2]
[392385516,1761417040715,-500.0,0.00030478,30]
[392385518,1761417040724,-150.0,0.00030478,30]
[392385520,1761417040733,-150.0,0.00030478,30]
[392385522,1761417040742,-5.47205385,0.00030478,30]
[392385525,1761417040758,-176.39289873,0.00030478,30]
[392385527,1761417040768,-404.95500358,0.00030478,2]
[392385529,1761417040779,-95.04499642,0.00030478,2]
[392385531,1761417040789,-150.0,0.00030478,30]
[392385533,1761417040799,-500.0,0.00030478,30]
[392385535,1761417040810,-150.0,0.00030478,30]
[392385537,1761417040819,-280.84132805,0.00030478,30]
[392385539,1761417040830,-219.15867195,0.00030478,30]
[392385541,1761417040840,-500.0,0.00030478,30]
[392385543,1761417040849,-140.38132805,0.00030516,7]
[392385546,1761417040865,-39.61867195,0.00030516,7]
[392385548,1761417040875,-150.0,0.00030532,30]
[392385550,1761417040885,-500.0,0.00030532,2]
[392385552,1761417040894,-500.0,0.00030532,30]
[392385554,1761417040903,-150.0,0.00030532,30]
[392385556,1761417040912,-150.0,0.00030532,30]
[392385558,1761417040921,-500.0,0.00030532,2]
[392385560,1761417040931,-150.0,0.00030532,30]
[392385562,1761417040939,-500.0,0.00030532,30]
[392385564,1761417040949,-272.56817401,0.00030532,30]
[392385566,1761417040960,-500.0,0.00030532,30]
[392385568,1761417040971,-500.0,0.00030532,30]
[392385570,1761417040980,-180.0,0.00030563,2]
[392385572,1761417040989,-6974.42556376,0.00030578,2]
[392385805,1761417043396,-1108.60225383,0.00030578,2]
[392385824,1761417043556,-500.0,0.00030578,2]
[392386094,1761417046309,-536.11464507,0.00030578,2]
[392386096,1761417046318,-199.96903195,0.00030587,30]
[392386098,1761417046327,-486.82676768,0.00030587,2]
[392386114,1761417046468,-13.17323232,0.00030587,2]
[392386116,1761417046477,-316.73594398,0.00030587,30]
[392386984,1761417173106,-300.0,0.00021515,2]
[392386985,1761417173131,-500.0,0.00021515,2]
[392386986,1761417173157,-500.0,0.00021515,2]
[392386987,1761417173183,-500.0,0.00021515,2]
[392387353,1761418232395,-300.0,0.00023998,2]
[392387354,1761418232405,-65.186577,0.00023998,2]
[392387355,1761418232448,-561.45,0.00023998,2]
[392387356,1761418232555,-573.363423,0.00023998,2]
[392387357,1761418232564,-300.0,0.00023998,2]
[392387358,1761418232573,-500.0,0.00023999,2]
[392387359,1761418232582,-251.23195476,0.00023999,2]
[392387360,1761418232663,-148.55538052,0.00023999,2]
[392387361,1761418232672,-500.0,0.00023999,2]
[392387362,1761418232681,-500.0,0.00023999,2]
[392387363,1761418232690,-500.0,0.00023999,2]
[392387364,1761418232699,-500.0,0.00023999,2]
[392387365,1761418232708,-1215.0,0.00023999,2]
[392387366,1761418232718,-36709.30103157,0.00024,2]
[392387368,1761418232727,-260.0,0.00026025,2]
[392387370,1761418232736,-420.0,0.00026025,2]
[392387372,1761418232745,-328.0,0.00026144,2]
[392387373,1761418232755,-366.48139853,0.00029049,2]
[392387374,1761418232764,-150.0,0.00029529,2]
[392387376,1761418232773,-150.0,0.00029529,120]
[392387378,1761418232782,-5000.0,0.00029567,2]
[392387380,1761418232791,-1455.99,0.0002962,2]
[392387382,1761418232800,-767.2394593,0.00029714,2]
[392387384,1761418232809,-160.0,0.00029794,2]
[392387386,1761418232818,-158.81,0.0002994,2]
[392387388,1761418232827,-1254.4180869,0.00029941,2]
[392387389,1761418232836,-10345.98812,0.00029941,2]
[392387391,1761418232845,-500.0,0.00030066,2]
[392387393,1761418232854,-164.75,0.00030148,30]
[392387396,1761418232863,-1468.88,0.00030166,2]
[392387399,1761418232872,-3090.87287548,0.00030414,2]
[392387402,1761418232880,-226.02260155,0.00030496,2]
[392387405,1761418232890,-1000.0,0.000305,2]
[392387408,1761418232899,-247.41482921,0.00030513,2]
[392387409,1761418232908,-160147.6399,0.00030514,2]
[392387411,1761418232916,-151.0,0.00030514,30]
[392387412,1761418232925,-181.89103,0.00030514,30]
[392387414,1761418232934,-151.0,0.00030514,30]
[392387416,1761418232943,-272.106751,0.00030514,30]
[392387417,1761418232952,-151.0,0.00030514,30]
[392387418,1761418232962,-220.785387,0.00030514,30]
[392387419,1761418232971,-166.66,0.00030517,2]
[392387420,1761418232980,-3090.87287542,0.00030524,2]
[392387421,1761418232989,-1000.0,0.000306,2]
[392387422,1761418232998,-1000.0,0.000306,2]
[392387423,1761418233007,-1605.0,0.000306,2]
[392387424,1761418233017,-3090.87287542,0.00030635,2]
[392387425,1761418233026,-290.39,0.00030685,30]
[392387426,1761418233036,-3090.87287542,0.00030745,2]
[392387427,1761418233045,-282.58,0.00030759,2]
[392387428,1761418233054,-150.0,0.00030833,2]
[392387429,1761418233064,-150.87949729,0.00030833,2]
[392387430,1761418233073,-500.0,0.00030833,2]
[392387431,1761418233082,-500.0,0.00030833,5]
[392387432,1761418233091,-500.0,0.00030833,2]
[392387433,1761418233100,-150.0,0.00030833,5]
[392387434,1761418233109,-3090.87287542,0.00030855,2]
[392387435,1761418233119,-152.13446032,0.00030888,2]
[392387436,1761418233128,-500.0,0.00030888,2]
[392387437,1761418233136,-500.0,0.00030888,5]
[392387438,1761418233146,-500.0,0.00030888,2]
[392387439,1761418233155,-150.0,0.00030888,5]
[392387440,1761418233164,-151.000002,0.00030888,30]
[392387441,1761418233174,-237.225406,0.00030888,30]
[392387442,1761418233183,-151.0,0.00030888,30]
[392387443,1761418233192,-151.0,0.00030888,30]
[392387444,1761418233201,-151.0,0.00030888,30]
[392387445,1761418233211,-151.0,0.00030888,30]
[392387446,1761418233220,-151.0,0.00030888,30]
[392387447,1761418233229,-192.613416,0.00030888,30]
[392387448,1761418233238,-151.0,0.00030888,30]
[392387449,1761418233247,-151.0,0.00030888,15]
[392387450,1761418233257,-181.556921,0.00030888,30]
[392387451,1761418233266,-152.604653,0.00030888,30]
[392387452,1761418233275,-151.0,0.00030888,30]
[392387453,1761418233284,-151.0,0.00030888,30]
[392387454,1761418233293,-151.0,0.00030888,30]
[392387455,1761418233302,-151.0,0.00030888,30]
[392387456,1761418233311,-151.0,0.00030888,30]
[392387457,1761418233320,-151.0,0.00030888,30]
[392387458,1761418233329,-151.0,0.00030888,30]
[392387459,1761418233338,-151.0,0.00030888,30]
[392387460,1761418233347,-151.0,0.00030888,30]
[392387461,1761418233357,-151.0,0.00030888,30]
[392387462,1761418233366,-247.473901,0.00030888,30]
[392387463,1761418233375,-247.473901,0.00030888,30]
[392387464,1761418233384,-247.473901,0.00030888,30]
[392387465,1761418233394,-247.473901,0.00030888,30]
[392387466,1761418233404,-150.0,0.00030888,5]
[392387467,1761418233413,-500.0,0.00030888,5]
[392387468,1761418233422,-150.0,0.00030888,5]
[392387469,1761418233430,-500.0,0.00030888,5]
[392387470,1761418233439,-150.0,0.00030888,5]
[392387471,1761418233448,-150.0,0.00030888,5]
[392387472,1761418233457,-150.0,0.00030888,5]
[392387473,1761418233466,-150.0,0.00030888,5]
[392387474,1761418233475,-150.0,0.00030888,5]
[392387475,1761418233484,-150.0,0.00030888,5]
[392387476,1761418233493,-150.0,0.00030888,5]
[392387477,1761418233502,-150.0,0.00030888,5]
[392387478,1761418233511,-150.0,0.00030888,5]
[392387479,1761418233520,-213.372591,0.00030888,30]
[392387480,1761418233529,-151.0,0.00030942,30]
[392387481,1761418233538,-336.02535,0.00030942,30]
[392387482,1761418233546,-150.0,0.00030943,2]
[392387483,1761418233555,-500.0,0.00030943,5]
[392387484,1761418233564,-168.89514188,0.00030943,2]
[392387485,1761418233574,-200.0,0.00030943,5]
[392387486,1761418233583,-150.0,0.00030943,5]
[392387487,1761418233592,-505.45059285,0.00030943,5]
[392387488,1761418233601,-150.0,0.00030943,5]
[392387489,1761418233610,-500.0,0.00030943,5]
[392387490,1761418233619,-150.0,0.00030943,5]
[392387491,1761418233629,-150.0,0.00030943,5]
[392387492,1761418233638,-153.40531204,0.00030943,5]
[392387493,1761418233649,-150.0,0.00030943,5]
[392387494,1761418233659,-169.76215859,0.00030943,5]
[392387495,1761418233668,-150.0,0.00030943,5]
[392387496,1761418233677,-250.0,0.00030943,5]
[392387497,1761418233687,-289.2802683,0.00030943,5]
[392387498,1761418233695,-151.0,0.00030961,30]
[392387499,1761418233704,-151.0,0.00030961,30]
[392387500,1761418233713,-289.966879,0.00030961,30]
[392387501,1761418233722,-362.82,0.00030961,14]
[392387502,1761418233731,-3090.87287542,0.00030966,2]
[392387503,1761418233740,-168.0,0.00030968,2]
[392387504,1761418233748,-168.0,0.00030972,2]
[392387505,1761418233757,-500.0,0.00030997,5]
[392387506,1761418233766,-200.0,0.00030998,5]
[392387507,1761418233775,-150.0,0.00030998,5]
[392387508,1761418233784,-600.0,0.00030998,5]
[392387509,1761418233794,-150.0,0.00030998,5]
[392387510,1761418233804,-150.0,0.00030998,5]
[392387511,1761418233813,-150.0,0.00030998,5]
[392387512,1761418233822,-155.62063674,0.00030998,5]
[392387513,1761418233831,-13742.49456134,0.00031,7]
[392387514,1761418233840,-476.4830027,0.00031,7]
[392387515,1761418233849,-151.0,0.00031,30]
[392387516,1761418233861,-151.0,0.00031,30]
[392387517,1761418233870,-151.0,0.00031,30]
[392387518,1761418233879,-151.0,0.00031,30]
[392387519,1761418233888,-151.0,0.00031,15]
[392387520,1761418233897,-221.004959,0.00031,30]
[392387521,1761418233906,-151.0,0.00031,30]
[392387522,1761418233915,-151.0,0.00031,30]
[392387523,1761418233924,-151.0,0.00031,30]
[392387524,1761418233933,-151.0,0.00031,30]
[392387525,1761418233943,-151.0,0.00031,30]
[392387526,1761418233952,-151.0,0.00031,30]
[392387527,1761418233961,-151.0,0.00031,30]
[392387528,1761418233971,-151.0,0.00031,30]
[392387529,1761418233980,-247.473901,0.00031,30]
[392387530,1761418233989,-247.473901,0.00031,30]
[392387531,1761418233998,-247.473901,0.00031,30]
[392387532,1761418234008,-247.473901,0.00031,30]
[392387533,1761418234018,-151.0,0.00031,30]
[392387534,1761418234027,-336.02535,0.00031,30]
[392387535,1761418234036,-336.02535,0.00031,30]
[392387536,1761418234046,-500.0,0.00031052,5]
[392387537,1761418234055,-150.0,0.00031052,5]
[392387538,1761418234064,-150.0,0.00031052,5]
[392387539,1761418234073,-150.0,0.00031052,5]
[392387540,1761418234082,-204.61057853,0.00031052,5]
[392387541,1761418234092,-3090.87287542,0.00031076,2]
[392387542,1761418234102,-367.9937838,0.00031107,5]
[392387543,1761418234112,-214.94975785,0.00031107,5]
[392387544,1761418234121,-205.99056556,0.00031107,5]
[392387545,1761418234130,-151.0,0.00031124,7]
[392387546,1761418234140,-152.0,0.00031124,7]
[392387547,1761418234150,-1236.0,0.00031124,7]
[392387548,1761418234160,-152.0,0.00031124,7]
[392387549,1761418234170,-1236.0,0.00031124,7]
[392387550,1761418234179,-152.0,0.00031124,7]
[392387551,1761418234188,-1236.0,0.00031124,7]
[392387552,1761418234197,-152.0,0.00031124,7]
[392387553,1761418234207,-1236.0,0.00031124,7]
[392387554,1761418234216,-152.0,0.00031124,7]
[392387555,1761418234225,-1236.0,0.00031124,7]
[392387556,1761418234234,-152.0,0.00031124,7]
[392387557,1761418234244,-1236.0,0.00031124,7]
[392387558,1761418234253,-151.0,0.00031124,7]
[392387559,1761418234263,-152.0,0.00031124,7]
[392387560,1761418234272,-1236.0,0.00031124,7]
[392387561,1761418234282,-151.0,0.00031124,7]
[392387562,1761418234291,-152.0,0.00031124,7]
[392387563,1761418234301,-151.0,0.00031124,7]
[392387564,1761418234310,-152.0,0.00031124,7]
[392387565,1761418234319,-1236.0,0.00031124,7]
[392387566,1761418234328,-151.0,0.00031124,7]
[392387567,1761418234337,-152.0,0.00031124,7]
[392387568,1761418234347,-1236.0,0.00031124,7]
[392387569,1761418234358,-155.54022849,0.00031124,7]
[392387570,1761418234367,-152.0,0.00031124,7]
[392387571,1761418234376,-1236.0,0.00031124,7]
[392387572,1761418234385,-152.0,0.00031124,7]
[392387573,1761418234393,-1236.0,0.00031124,7]
[392387574,1761418234403,-152.0,0.00031124,7]
[392387575,1761418234411,-1236.0,0.00031124,7]
[392387576,1761418234420,-152.0,0.00031124,7]
[392387577,1761418234429,-1236.0,0.00031124,7]
[392387578,1761418234438,-1236.0,0.00031124,7]
[392387579,1761418234447,-152.0,0.00031124,7]
[392387580,1761418234455,-152.0,0.00031124,7]
[392387581,1761418234464,-1236.0,0.00031124,7]
[392387582,1761418234473,-152.0,0.00031124,7]
[392387583,1761418234482,-1236.0,0.00031124,7]
[392387584,1761418234491,-152.0,0.00031124,7]
[392387585,1761418234500,-1236.0,0.00031124,7]
[392387586,1761418234509,-152.0,0.00031124,7]
[392387587,1761418234518,-1236.0,0.00031124,7]
[392387588,1761418234526,-152.0,0.00031124,7]
[392387589,1761418234535,-1236.0,0.00031124,7]
[392387590,1761418234543,-1236.0,0.00031124,7]
[392387591,1761418234552,-152.0,0.00031124,7]
[392387592,1761418234561,-1236.0,0.00031124,7]
[392387593,1761418234571,-281.0,0.00031124,7]
[392387594,1761418234579,-1236.0,0.00031124,7]
[392387595,1761418234588,-1236.0,0.00031124,7]
[392387596,1761418234598,-1236.0,0.00031124,7]
[392387597,1761418234607,-1236.0,0.00031124,7]
[392387598,1761418234616,-1236.0,0.00031124,7]
[392387599,1761418234625,-1236.0,0.00031124,7]
[392387600,1761418234634,-1236.0,0.00031124,7]
[392387601,1761418234643,-1236.0,0.00031124,7]
[392387602,1761418234657,-1236.0,0.00031124,7]
[392387603,1761418234666,-1236.0,0.00031124,7]
[392387604,1761418234675,-1236.0,0.00031124,7]
[392387605,1761418234684,-1236.0,0.00031124,7]
[392387606,1761418234694,-1236.0,0.00031124,7]
[392387607,1761418234703,-1236.0,0.00031124,7]
[392387608,1761418234712,-1236.0,0.00031124,7]
[392387609,1761418234723,-1236.0,0.00031124,7]
[392387610,1761418234732,-1236.0,0.00031124,7]
[392387611,1761418234741,-1236.0,0.00031124,7]
[392387612,1761418234750,-1008.76318194,0.00031124,7]
[392387613,1761418234760,-155.0,0.00031124,30]
[392387614,1761418234769,-336.02535,0.00031124,30]
[392387615,1761418234779,-336.02535,0.00031124,30]
[392387616,1761418234788,-336.02535,0.00031124,30]
[392387617,1761418234798,-336.02535,0.00031124,30]
[392387618,1761418234807,-500.0,0.00031173,5]
[392387619,1761418234816,-479.26697898,0.00031173,5]
[392387620,1761418234826,-500.0,0.00031173,5]
[392387621,1761418234835,-500.0,0.00031173,5]
[392387622,1761418234844,-500.0,0.00031173,5]
[392387623,1761418234991,-500.0,0.00031173,5]
[392387624,1761418235002,-168.0,0.00031177,2]
[392387625,1761418235011,-3090.87287542,0.00031186,2]
[392387626,1761418235021,-1000.0,0.000312,10]
[392387627,1761418235031,-1000.0,0.000312,9]
[392387628,1761418235040,-1000.0,0.000312,9]
[392387629,1761418235050,-1000.0,0.000312,8]
[392387630,1761418235059,-1000.0,0.000312,8]
[392387631,1761418235069,-1342.0,0.000312,8]
[392387632,1761418235079,-1000.0,0.000312,7]
[392387633,1761418235088,-1000.0,0.000312,7]
[392387634,1761418235097,-1000.0,0.000312,7]
[392387635,1761418235107,-1000.0,0.000312,6]
[392387636,1761418235115,-1000.0,0.000312,6]
[392387637,1761418235125,-151.0,0.000312,30]
[392387638,1761418235133,-300.751597,0.000312,30]
[392387639,1761418235142,-284.917093,0.000312,30]
[392387640,1761418235152,-151.0,0.000312,30]
[392387641,1761418235161,-151.0,0.000312,30]
[392387642,1761418235171,-151.0,0.000312,30]
[392387643,1761418235180,-151.0,0.000312,30]
[392387644,1761418235189,-188.0,0.000312,30]
[392387645,1761418235198,-247.473901,0.000312,30]
[392387646,1761418235207,-247.473901,0.000312,30]
[392387647,1761418235216,-247.473901,0.000312,30]
[392387648,1761418235226,-247.473901,0.000312,30]
[392387649,1761418235235,-336.02535,0.000312,30]
[392387650,1761418235244,-336.02535,0.000312,30]
[392387651,1761418235253,-267.329944,0.00031233,30]
[392387652,1761418235262,-507.04,0.00031233,2]
[392387653,1761418235272,-12960.3706207,0.00031233,2]
[392387654,1761418235281,-362.82,0.00031235,14]
[392387655,1761418235291,-151.0,0.00031251,2]
[392387656,1761418235300,-331.13247844,0.00031251,2]
[392387657,1761418235309,-151.0,0.00031251,30]
[392387658,1761418235318,-151.0,0.00031251,30]
[392387659,1761418235327,-247.473901,0.00031251,30]
[392387660,1761418235336,-247.473901,0.00031251,30]
[392387661,1761418235345,-247.473901,0.00031251,30]
[392387662,1761418235354,-247.473901,0.00031251,30]
[392387663,1761418235363,-3090.87287542,0.00031297,2]
[392387664,1761418235372,-282.578889,0.00031303,30]
[392387665,1761418235381,-151.0,0.00031303,30]
[392387666,1761418235390,-151.0,0.00031305,30]
[392387667,1761418235399,-641.21760869,0.00031306,2]
[392387668,1761418235408,-168.0,0.00031356,7]
[392387669,1761418235417,-5000.0,0.00031397,2]
[392387670,1761418235427,-162.16397036,0.00031407,3]
[392387671,1761418235438,-151.0,0.00031407,30]
[392387672,1761418235447,-151.0,0.00031407,30]
[392387673,1761418235455,-247.473901,0.00031407,30]
[392387674,1761418235464,-247.473901,0.00031407,30]
[392387675,1761418235473,-247.473901,0.00031407,30]
[392387676,1761418235482,-247.473909,0.00031407,30]
[392387677,1761418235491,-3090.87287542,0.00031407,2]
[392387678,1761418235500,-507.50372054,0.00031407,2]
[392387679,1761418235509,-167.07597198,0.00031407,2]
[392387680,1761418235518,-19675.80582358,0.0003144,2]
[392387681,1761418235527,-277.681684,0.0003144,30]
[392387682,1761418235536,-215.084723,0.0003144,30]
[392387683,1761418235545,-5416.0,0.00031442,2]
[392387684,1761418235554,-5416.0,0.00031444,2]
[392387685,1761418235563,-4133.32294209,0.00031446,2]
[392387686,1761418235602,-1282.67705791,0.00031446,2]
[392387687,1761418235611,-5416.0,0.00031448,2]
[392387688,1761418235621,-501.71292426,0.00031473,5]
[392387689,1761418235630,-2500.0,0.00031482,7]
[392387690,1761418235639,-2500.0,0.00031491,7]
[392387691,1761418235652,-2500.0,0.00031491,7]
[392387692,1761418235661,-514.30329975,0.00031497,2]
[392387693,1761418235670,-514.30329975,0.00031497,2]
[392387694,1761418235680,-514.30329975,0.00031497,2]
[392387695,1761418235690,-150.35,0.00031497,2]
[392387696,1761418235700,-150.35,0.00031497,2]
[392387697,1761418235710,-150.35,0.00031497,2]
[392387698,1761418235719,-150.35,0.00031497,2]
[392387699,1761418235728,-150.35,0.00031497,2]
[392387700,1761418235738,-150.35,0.00031497,2]